[Event "*** Titled Tuesday Blitz"]
[Site "Chess.com"]
[Date "2020.10.20"]
[Round "2"]
[White "Annawel"]
[Black "Gahan-MG"]
[Result "1-0"]
[WhiteElo "2913"]
[BlackElo "2594"]
[TimeControl "180+1"]
[EndTime "10:16:46 PDT"]
[Termination "Annawel won by resignation"]

1. Nf3 {[%clk 0:01:28.7]} 1... Nf6 {[%clk 0:02:57.5]} 2. g3 {[%clk 0:01:28.8]}
2... g6 {[%clk 0:02:57.9]} 3. Bg2 {[%clk 0:01:29.3]} 3... Bg7 {[%clk 0:02:58.8]}
4. O-O {[%clk 0:01:30]} 4... O-O {[%clk 0:02:59.7]} 5. c4 {[%clk 0:01:29.8]}
5... d5 {[%clk 0:03:00]} 6. cxd5 {[%clk 0:01:29]} 6... Nxd5 {[%clk 0:03:00.9]}
7. Nc3 {[%clk 0:01:29.6]} 7... Nb6 {[%clk 0:03:01]} 8. b3 {[%clk 0:01:29.2]}
8... Nc6 {[%clk 0:03:01.3]} 9. Bb2 {[%clk 0:01:29.3]} 9... a5 {[%clk 0:03:01]}
10. Rc1 {[%clk 0:01:28.8]} 10... Bg4 {[%clk 0:02:56.1]} 11. h3 {[%clk
0:01:27.9]} 11... Bf5 {[%clk 0:02:54.3]} 12. d3 {[%clk 0:01:25.4]} 12... Qd7
{[%clk 0:02:51.5]} 13. g4 {[%clk 0:01:25.5]} 13... Be6 {[%clk 0:02:49.9]} 14.
Qd2 {[%clk 0:01:25.4]} 14... a4 {[%clk 0:02:47.1]} 15. Ne4 {[%clk 0:01:22.4]}
15... axb3 {[%clk 0:02:40.1]} 16. Bxg7 {[%clk 0:01:20.5]} 16... Kxg7 {[%clk
0:02:35.4]} 17. Nc5 {[%clk 0:01:18.8]} 17... Qc8 {[%clk 0:02:28.6]} 18. axb3
{[%clk 0:01:19.1]} 18... Bd5 {[%clk 0:02:26.5]} 19. e4 {[%clk 0:01:18.9]} 19...
Be6 {[%clk 0:02:25.6]} 20. d4 {[%clk 0:01:19.5]} 20... Rd8 {[%clk 0:02:20.6]}
21. d5 {[%clk 0:01:19.1]} 21... Nxd5 {[%clk 0:02:12.5]} 22. exd5 {[%clk
0:01:19.2]} 22... Bxd5 {[%clk 0:02:13.4]} 23. Qc3+ {[%clk 0:01:18.3]} 23... Kg8
{[%clk 0:02:12.7]} 24. Rfe1 {[%clk 0:01:17.7]} 24... b6 {[%clk 0:02:10.9]} 25.
Nd3 {[%clk 0:01:16.9]} 25... Ra3 {[%clk 0:02:09.5]} 26. Rb1 {[%clk 0:01:06.7]}
26... Qa6 {[%clk 0:01:56.3]} 27. Nf4 {[%clk 0:01:05.9]} 27... Bxf3 {[%clk
0:01:52.7]} 28. Bxf3 {[%clk 0:01:06.8]} 28... Nd4 {[%clk 0:01:53]} 29. Bg2
{[%clk 0:01:02.3]} 29... c5 {[%clk 0:01:38.1]} 30. Rxe7 {[%clk 0:00:59.4]} 30...
Ra2 {[%clk 0:01:36.8]} 31. Rbe1 {[%clk 0:00:58.3]} 31... Qb5 {[%clk 0:01:34.3]}
32. Bd5 {[%clk 0:00:56]} 32... Rf8 {[%clk 0:01:31]} 33. b4 {[%clk 0:00:50.8]}
33... Rc2 {[%clk 0:01:28]} 34. Qe3 {[%clk 0:00:49.9]} 34... Qxb4 {[%clk
0:01:20.6]} 35. Rxf7 {[%clk 0:00:33.2]} 35... Rxf7 {[%clk 0:01:19]} 36. Qe8+
{[%clk 0:00:32.9]} 36... Kg7 {[%clk 0:01:19.9]} 37. Qxf7+ {[%clk 0:00:33.5]}
37... Kh6 {[%clk 0:01:20.4]} 38. g5+ {[%clk 0:00:31]} 38... Kxg5 {[%clk
0:01:20.2]} 39. Qe7+ {[%clk 0:00:31.2]} 39... Kh6 {[%clk 0:01:13.4]} 40. Qh4+
{[%clk 0:00:30.7]} 1-0

[Event "*** Titled Tuesday Blitz"]
[Site "Chess.com"]
[Date "2020.10.20"]
[Round "2"]
[White "ChronicUnhappiness"]
[Black "Ind1anStar"]
[Result "0-1"]
[WhiteElo "2281"]
[BlackElo "2458"]
[TimeControl "180+1"]
[EndTime "10:16:52 PDT"]
[Termination "Ind1anStar won by resignation"]

1. c4 {[%clk 0:03:00.9]} 1... e6 {[%clk 0:03:00]} 2. d4 {[%clk 0:02:59.7]} 2...
d5 {[%clk 0:02:59.2]} 3. Nc3 {[%clk 0:02:59.1]} 3... Be7 {[%clk 0:02:58.9]} 4.
cxd5 {[%clk 0:02:57.3]} 4... exd5 {[%clk 0:02:59.3]} 5. Nf3 {[%clk 0:02:56.8]}
5... Nf6 {[%clk 0:02:59.5]} 6. Bg5 {[%clk 0:02:55.9]} 6... c6 {[%clk 0:02:57.8]}
7. Qc2 {[%clk 0:02:55.4]} 7... Nbd7 {[%clk 0:02:57.7]} 8. e3 {[%clk 0:02:55.6]}
8... O-O {[%clk 0:02:55]} 9. Bd3 {[%clk 0:02:55.7]} 9... Re8 {[%clk 0:02:55.3]}
10. O-O {[%clk 0:02:55.2]} 10... Nf8 {[%clk 0:02:55.2]} 11. Rab1 {[%clk
0:02:49.4]} 11... Ng6 {[%clk 0:02:52.9]} 12. b4 {[%clk 0:02:44.9]} 12... a6
{[%clk 0:02:53]} 13. a4 {[%clk 0:02:43.9]} 13... h6 {[%clk 0:02:51.6]} 14. Bxf6
{[%clk 0:02:39.6]} 14... Bxf6 {[%clk 0:02:46.9]} 15. Bxg6 {[%clk 0:02:38.7]}
15... fxg6 {[%clk 0:02:47.1]} 16. Qxg6 {[%clk 0:02:38.5]} 16... Be6 {[%clk
0:02:47.2]} 17. Ne2 {[%clk 0:02:18.9]} 17... Qd7 {[%clk 0:02:46.3]} 18. Qg3
{[%clk 0:02:14.6]} 18... Bf5 {[%clk 0:02:37.6]} 19. Rb3 {[%clk 0:02:04.5]} 19...
Bc2 {[%clk 0:02:32.5]} 20. Ra3 {[%clk 0:01:58.1]} 20... Be7 {[%clk 0:02:30.2]}
21. Ne5 {[%clk 0:01:50.4]} 21... Qf5 {[%clk 0:02:29.2]} 22. Rc3 {[%clk
0:01:39.7]} 22... Bxb4 {[%clk 0:02:25.6]} 23. Rxc2 {[%clk 0:01:35.5]} 23... Qxc2
{[%clk 0:02:26.5]} 24. Nf4 {[%clk 0:01:32.8]} 24... Qf5 {[%clk 0:02:16.5]} 25.
h4 {[%clk 0:01:23.6]} 25... Bd6 {[%clk 0:02:13.4]} 26. Nfd3 {[%clk 0:01:23.1]}
26... Qxd3 {[%clk 0:02:08.9]} 27. Nxd3 {[%clk 0:00:55.8]} 27... Bxg3 {[%clk
0:02:08.9]} 28. fxg3 {[%clk 0:00:56.7]} 28... Rxe3 {[%clk 0:02:09]} 29. Ne5
{[%clk 0:00:57.4]} 29... Rxg3 {[%clk 0:02:07.5]} 30. a5 {[%clk 0:00:55.8]} 30...
Ra3 {[%clk 0:02:00.6]} 31. Rb1 {[%clk 0:00:53.9]} 31... Ra7 {[%clk 0:01:56.3]}
32. h5 {[%clk 0:00:47.4]} 32... Rxa5 {[%clk 0:01:52.7]} 33. Ng6 {[%clk
0:00:46.5]} 33... Rb5 {[%clk 0:01:48.8]} 34. Rf1 {[%clk 0:00:41]} 34... Ra8
{[%clk 0:01:49.2]} 35. Ne7+ {[%clk 0:00:36.6]} 35... Kh7 {[%clk 0:01:49.1]} 36.
Rf7 {[%clk 0:00:37.5]} 36... a5 {[%clk 0:01:43.7]} 37. Nf5 {[%clk 0:00:36.9]}
37... Rg8 {[%clk 0:01:43.5]} 38. Ne7 {[%clk 0:00:33.5]} 38... a4 {[%clk
0:01:42]} 39. Nxg8 {[%clk 0:00:26.5]} 39... Kxg8 {[%clk 0:01:42.9]} 40. Rf3
{[%clk 0:00:26.8]} 40... Rb3 {[%clk 0:01:41.7]} 41. Rf2 {[%clk 0:00:26.4]} 41...
a3 {[%clk 0:01:40.6]} 42. Ra2 {[%clk 0:00:27.3]} 42... b5 {[%clk 0:01:40.7]} 43.
Kh2 {[%clk 0:00:26.5]} 43... b4 {[%clk 0:01:41.2]} 44. Re2 {[%clk 0:00:19.7]}
44... Rb2 {[%clk 0:01:40.3]} 45. Re8+ {[%clk 0:00:20.6]} 45... Kf7 {[%clk
0:01:40.7]} 46. Rc8 {[%clk 0:00:20.7]} 46... a2 {[%clk 0:01:40.6]} 47. Rc7+
{[%clk 0:00:21.6]} 47... Kg8 {[%clk 0:01:40.4]} 0-1

[Event "*** Titled Tuesday Blitz"]
[Site "Chess.com"]
[Date "2020.10.20"]
[Round "2"]
[White "MidnightFox"]
[Black "barbara25"]
[Result "0-1"]
[WhiteElo "2431"]
[BlackElo "2270"]
[TimeControl "180+1"]
[EndTime "10:16:55 PDT"]
[Termination "barbara25 won by checkmate"]

1. Nf3 {[%clk 0:03:00.9]} 1... Nf6 {[%clk 0:02:59.4]} 2. c4 {[%clk 0:02:59.7]}
2... e6 {[%clk 0:02:51.6]} 3. Nc3 {[%clk 0:02:59.5]} 3... c6 {[%clk 0:02:52]} 4.
d4 {[%clk 0:02:57.3]} 4... d5 {[%clk 0:02:52.1]} 5. Bg5 {[%clk 0:02:57.6]} 5...
Be7 {[%clk 0:02:52]} 6. e3 {[%clk 0:02:57.5]} 6... O-O {[%clk 0:02:52]} 7. Rc1
{[%clk 0:02:57.2]} 7... Nbd7 {[%clk 0:02:52.6]} 8. Bd3 {[%clk 0:02:56.8]} 8...
Re8 {[%clk 0:02:52.8]} 9. O-O {[%clk 0:02:56.5]} 9... Nf8 {[%clk 0:02:53]} 10.
Ne5 {[%clk 0:02:55.6]} 10... Ng6 {[%clk 0:02:50.4]} 11. f4 {[%clk 0:02:55.7]}
11... h6 {[%clk 0:02:49.9]} 12. Bxf6 {[%clk 0:02:53.8]} 12... Bxf6 {[%clk
0:02:50.2]} 13. Nxg6 {[%clk 0:02:53.1]} 13... fxg6 {[%clk 0:02:51.1]} 14. Bxg6
{[%clk 0:02:53]} 14... Rf8 {[%clk 0:02:52]} 15. c5 {[%clk 0:02:49.1]} 15... b6
{[%clk 0:02:51.3]} 16. b4 {[%clk 0:02:48.5]} 16... a6 {[%clk 0:02:50.7]} 17. Bb1
{[%clk 0:02:40.3]} 17... a5 {[%clk 0:02:48.5]} 18. a3 {[%clk 0:02:36]} 18...
axb4 {[%clk 0:02:48.2]} 19. axb4 {[%clk 0:02:36.9]} 19... bxc5 {[%clk
0:02:48.7]} 20. bxc5 {[%clk 0:02:36.7]} 20... Ba6 {[%clk 0:02:48.8]} 21. Rf3
{[%clk 0:02:31.4]} 21... Bc4 {[%clk 0:02:48.8]} 22. Qc2 {[%clk 0:02:30.2]} 22...
Ra3 {[%clk 0:02:46.5]} 23. Qh7+ {[%clk 0:02:01.1]} 23... Kf7 {[%clk 0:02:45.7]}
24. f5 {[%clk 0:02:01.3]} 24... Qa5 {[%clk 0:02:41.1]} 25. fxe6+ {[%clk
0:01:58.5]} 25... Ke8 {[%clk 0:02:40.9]} 26. Rxf6 {[%clk 0:01:36.7]} 26... Rxf6
{[%clk 0:02:36.5]} 27. Qg8+ {[%clk 0:01:25.4]} 27... Ke7 {[%clk 0:02:29.8]} 28.
Qxg7+ {[%clk 0:01:02.8]} 28... Kxe6 {[%clk 0:02:29]} 29. Bh7 {[%clk 0:01:01.1]}
29... Qxc3 {[%clk 0:01:16.3]} 30. Bg8+ {[%clk 0:00:55.9]} 30... Kf5 {[%clk
0:01:16.3]} 31. g4+ {[%clk 0:00:43.2]} 31... Ke4 {[%clk 0:01:09.5]} 32. Rxc3
{[%clk 0:00:42.4]} 32... Rf1+ {[%clk 0:00:58.3]} 33. Kg2 {[%clk 0:00:42.7]}
33... Ra2+ {[%clk 0:00:52.6]} 34. Kg3 {[%clk 0:00:32.4]} 34... Rf3+ {[%clk
0:00:52.4]} 35. Kh4 {[%clk 0:00:32.2]} 35... Rxh2# {[%clk 0:00:52.3]} 0-1

[Event "*** Titled Tuesday Blitz"]
[Site "Chess.com"]
[Date "2020.10.20"]
[Round "2"]
[White "Rud_Makarian"]
[Black "Chessmatus"]
[Result "1-0"]
[WhiteElo "2746"]
[BlackElo "2338"]
[TimeControl "180+1"]
[EndTime "10:16:58 PDT"]
[Termination "Rud_Makarian won by resignation"]

1. e4 {[%clk 0:02:58.7]} 1... c5 {[%clk 0:02:59.2]} 2. Nf3 {[%clk 0:02:58.9]}
2... d6 {[%clk 0:02:59.7]} 3. d4 {[%clk 0:02:59]} 3... cxd4 {[%clk 0:03:00.6]}
4. Nxd4 {[%clk 0:02:59.9]} 4... Nf6 {[%clk 0:03:01.2]} 5. Nc3 {[%clk 0:03:00.7]}
5... a6 {[%clk 0:03:01.6]} 6. Be3 {[%clk 0:03:00.5]} 6... e5 {[%clk 0:02:59]} 7.
Nb3 {[%clk 0:03:00.9]} 7... Be7 {[%clk 0:02:59.5]} 8. f3 {[%clk 0:03:01.4]} 8...
h5 {[%clk 0:03:00.1]} 9. Qd2 {[%clk 0:02:58.2]} 9... Be6 {[%clk 0:03:00.3]} 10.
O-O-O {[%clk 0:02:56.7]} 10... Nbd7 {[%clk 0:02:58.4]} 11. Nd5 {[%clk
0:02:55.4]} 11... Bxd5 {[%clk 0:02:56.2]} 12. exd5 {[%clk 0:02:56.3]} 12... Qc7
{[%clk 0:02:56.8]} 13. Kb1 {[%clk 0:02:54.9]} 13... Nb6 {[%clk 0:02:57.1]} 14.
Qa5 {[%clk 0:02:50.9]} 14... Rc8 {[%clk 0:02:56]} 15. c3 {[%clk 0:02:39.7]}
15... Bd8 {[%clk 0:02:55.8]} 16. Be2 {[%clk 0:02:36.2]} 16... Nbxd5 {[%clk
0:02:39.6]} 17. Rxd5 {[%clk 0:02:35.1]} 17... Qc6 {[%clk 0:01:56.1]} 18. Rxe5+
{[%clk 0:02:25.6]} 18... dxe5 {[%clk 0:01:52.6]} 19. Qxe5+ {[%clk 0:02:26.5]}
19... Qe6 {[%clk 0:01:39.6]} 20. Qxe6+ {[%clk 0:02:26.7]} 20... fxe6 {[%clk
0:01:39]} 21. Rd1 {[%clk 0:02:22.3]} 21... Bc7 {[%clk 0:01:31.1]} 22. Nc5 {[%clk
0:02:14.7]} 22... Bb6 {[%clk 0:01:22]} 23. b4 {[%clk 0:02:14]} 23... O-O {[%clk
0:01:19.3]} 24. Bc4 {[%clk 0:02:10.8]} 24... Rfe8 {[%clk 0:01:07.6]} 25. Rd6
{[%clk 0:02:08.8]} 25... Bxc5 {[%clk 0:00:47.1]} 26. Bxc5 {[%clk 0:02:09.7]}
26... Kf7 {[%clk 0:00:47.6]} 27. a4 {[%clk 0:01:59.2]} 27... Rcd8 {[%clk
0:00:47.7]} 28. Bxe6+ {[%clk 0:01:58.9]} 28... Kg6 {[%clk 0:00:40.7]} 29. Rxd8
{[%clk 0:01:58.3]} 29... Rxd8 {[%clk 0:00:40.8]} 30. Kc2 {[%clk 0:01:59]} 30...
Nd7 {[%clk 0:00:31.8]} 31. Bd4 {[%clk 0:01:55.2]} 31... Nf6 {[%clk 0:00:30]} 32.
a5 {[%clk 0:01:54.8]} 32... h4 {[%clk 0:00:25.5]} 33. f4 {[%clk 0:01:54.2]}
33... Nh5 {[%clk 0:00:23.6]} 34. f5+ {[%clk 0:01:53.7]} 34... Kg5 {[%clk
0:00:23.1]} 35. Bb6 {[%clk 0:01:43.8]} 35... Re8 {[%clk 0:00:21]} 36. Bd5 {[%clk
0:01:43.9]} 36... Nf4 {[%clk 0:00:18.1]} 37. Bxb7 {[%clk 0:01:44]} 37... Re2+
{[%clk 0:00:18.7]} 38. Kb3 {[%clk 0:01:44.4]} 38... Nxg2 {[%clk 0:00:18.9]} 39.
b5 {[%clk 0:01:43.6]} 39... Nf4 {[%clk 0:00:11.7]} 40. bxa6 {[%clk 0:01:43.6]}
40... Rxh2 {[%clk 0:00:12.2]} 41. a7 {[%clk 0:01:44.2]} 41... h3 {[%clk
0:00:12.5]} 42. a8=Q {[%clk 0:01:45.1]} 42... Rf2 {[%clk 0:00:11]} 43. Bxf2
{[%clk 0:01:44.3]} 1-0

[Event "*** Titled Tuesday Blitz"]
[Site "Chess.com"]
[Date "2020.10.20"]
[Round "2"]
[White "cukin84"]
[Black "VladimirBugayev"]
[Result "1-0"]
[WhiteElo "2048"]
[BlackElo "2355"]
[TimeControl "180+1"]
[EndTime "10:16:58 PDT"]
[Termination "cukin84 won on time"]

1. e4 {[%clk 0:03:00.9]} 1... c6 {[%clk 0:02:59.4]} 2. d4 {[%clk 0:03:00.1]}
2... d5 {[%clk 0:02:59.6]} 3. exd5 {[%clk 0:02:59.8]} 3... cxd5 {[%clk
0:03:00.5]} 4. Bd3 {[%clk 0:02:59.5]} 4... Nc6 {[%clk 0:03:00.1]} 5. c3 {[%clk
0:02:59.1]} 5... Nf6 {[%clk 0:03:00.4]} 6. h3 {[%clk 0:02:58.3]} 6... e5 {[%clk
0:02:54.3]} 7. dxe5 {[%clk 0:02:57.7]} 7... Nxe5 {[%clk 0:02:55.2]} 8. Be2
{[%clk 0:02:56.6]} 8... Be7 {[%clk 0:02:40.7]} 9. Nf3 {[%clk 0:02:55.9]} 9...
Ng6 {[%clk 0:02:28.6]} 10. O-O {[%clk 0:02:54.4]} 10... O-O {[%clk 0:02:28.4]}
11. Na3 {[%clk 0:02:50.8]} 11... a6 {[%clk 0:02:04.6]} 12. Nc2 {[%clk
0:02:49.6]} 12... Be6 {[%clk 0:02:02.7]} 13. Ncd4 {[%clk 0:02:48.5]} 13... Rc8
{[%clk 0:02:02.5]} 14. Bg5 {[%clk 0:02:45.7]} 14... h6 {[%clk 0:02:00.1]} 15.
Be3 {[%clk 0:02:41.6]} 15... Ne4 {[%clk 0:01:50.2]} 16. Nd2 {[%clk 0:02:36.4]}
16... Qd7 {[%clk 0:01:09.6]} 17. Rc1 {[%clk 0:02:23.6]} 17... b5 {[%clk
0:01:02.7]} 18. a3 {[%clk 0:02:21.1]} 18... f5 {[%clk 0:00:54.1]} 19. Nxe6
{[%clk 0:02:19]} 19... Qxe6 {[%clk 0:00:53.8]} 20. Nf3 {[%clk 0:02:17.7]} 20...
f4 {[%clk 0:00:47.4]} 21. Bd4 {[%clk 0:02:11.5]} 21... Bc5 {[%clk 0:00:40.4]}
22. Bxc5 {[%clk 0:02:10.1]} 22... Rxc5 {[%clk 0:00:40.3]} 23. Nd4 {[%clk
0:02:10]} 23... Qf6 {[%clk 0:00:31.4]} 24. Bg4 {[%clk 0:02:07.6]} 24... Re8
{[%clk 0:00:22.7]} 25. f3 {[%clk 0:01:57.5]} 25... Ng3 {[%clk 0:00:22.3]} 26.
Re1 {[%clk 0:01:56]} 26... Rcc8 {[%clk 0:00:17.4]} 27. Bxc8 {[%clk 0:01:53.7]}
27... Rxc8 {[%clk 0:00:16.9]} 28. Re6 {[%clk 0:01:51.1]} 28... Qf7 {[%clk
0:00:11.7]} 29. Qe1 {[%clk 0:01:49.3]} 29... Nf5 {[%clk 0:00:05.2]} 30. Nxf5
{[%clk 0:01:48.4]} 30... Qxf5 {[%clk 0:00:06.1]} 31. Re8+ {[%clk 0:01:48.1]}
31... Rxe8 {[%clk 0:00:04.7]} 32. Qxe8+ {[%clk 0:01:49]} 32... Kh7 {[%clk
0:00:04.9]} 33. Qe2 {[%clk 0:01:44.7]} 33... Nh4 {[%clk 0:00:04.6]} 34. Rd1
{[%clk 0:01:42.1]} 34... Qg5 {[%clk 0:00:01.9]} 35. Rd2 {[%clk 0:01:35.6]} 35...
h5 {[%clk 0:00:01.2]} 36. Qd3+ {[%clk 0:01:34.8]} 36... Kh8 {[%clk 0:00:01.1]}
37. Qxd5 {[%clk 0:01:32.9]} 37... Qg6 {[%clk 0:00:01]} 38. Qd8+ {[%clk
0:01:29.9]} 1-0

[Event "*** Titled Tuesday Blitz"]
[Site "Chess.com"]
[Date "2020.10.20"]
[Round "2"]
[White "jlucasvf"]
[Black "Sanyura"]
[Result "1-0"]
[WhiteElo "2790"]
[BlackElo "2502"]
[TimeControl "180+1"]
[EndTime "10:17:06 PDT"]
[Termination "jlucasvf won by resignation"]

1. g4 {[%clk 0:03:00.9]} 1... d5 {[%clk 0:02:54.5]} 2. Bg2 {[%clk 0:03:01.8]}
2... c5 {[%clk 0:02:53.3]} 3. h3 {[%clk 0:03:00.4]} 3... Nc6 {[%clk 0:02:53.7]}
4. c4 {[%clk 0:03:00]} 4... e6 {[%clk 0:02:49.8]} 5. Nc3 {[%clk 0:02:55.4]} 5...
d4 {[%clk 0:02:47.1]} 6. Bxc6+ {[%clk 0:02:55.3]} 6... bxc6 {[%clk 0:02:47.6]}
7. Ne4 {[%clk 0:02:56.2]} 7... f5 {[%clk 0:02:44]} 8. Ng3 {[%clk 0:02:53.9]}
8... Bd6 {[%clk 0:02:40.5]} 9. d3 {[%clk 0:02:51.3]} 9... Qc7 {[%clk 0:02:23.7]}
10. Nf1 {[%clk 0:02:45.7]} 10... Nf6 {[%clk 0:02:15.4]} 11. g5 {[%clk
0:02:44.5]} 11... Nh5 {[%clk 0:02:15.1]} 12. e4 {[%clk 0:02:35.5]} 12... dxe3
{[%clk 0:02:13.2]} 13. Qxh5+ {[%clk 0:02:35]} 13... g6 {[%clk 0:02:11.3]} 14.
Qe2 {[%clk 0:02:34]} 14... exf2+ {[%clk 0:02:10.4]} 15. Qxf2 {[%clk 0:02:32.6]}
15... O-O {[%clk 0:02:08.9]} 16. Bd2 {[%clk 0:02:30.2]} 16... e5 {[%clk
0:02:05.8]} 17. O-O-O {[%clk 0:02:30.5]} 17... Rb8 {[%clk 0:02:04.9]} 18. Bc3
{[%clk 0:02:30.5]} 18... Be6 {[%clk 0:01:59.5]} 19. Nd2 {[%clk 0:02:18.7]} 19...
e4 {[%clk 0:01:56.6]} 20. dxe4 {[%clk 0:02:02.6]} 20... Be5 {[%clk 0:01:55.3]}
21. Ne2 {[%clk 0:01:59.7]} 21... Rb7 {[%clk 0:01:08.7]} 22. Qxc5 {[%clk
0:01:58]} 22... Bxc3 {[%clk 0:01:04.3]} 23. Nxc3 {[%clk 0:01:58.9]} 23... Rfb8
{[%clk 0:01:04.6]} 24. b3 {[%clk 0:01:57.7]} 24... a5 {[%clk 0:01:02.7]} 25.
exf5 {[%clk 0:01:50.6]} 25... Bxf5 {[%clk 0:01:03.6]} 26. Rhe1 {[%clk
0:01:37.6]} 26... Qg3 {[%clk 0:01:02.8]} 27. Qe3 {[%clk 0:01:35.9]} 27... Qd6
{[%clk 0:00:59.3]} 28. Kb2 {[%clk 0:01:29.7]} 28... a4 {[%clk 0:00:55.6]} 29.
Nxa4 {[%clk 0:01:29.2]} 29... Qb4 {[%clk 0:00:55.5]} 30. Ka1 {[%clk 0:01:14.5]}
30... Ra8 {[%clk 0:00:53.2]} 31. Nb1 {[%clk 0:00:48.4]} 31... h5 {[%clk
0:00:38.1]} 32. Qc3 {[%clk 0:00:42.8]} 32... Qa3 {[%clk 0:00:31.5]} 33. Nxa3
{[%clk 0:00:42.2]} 1-0

[Event "*** Titled Tuesday Blitz"]
[Site "Chess.com"]
[Date "2020.10.20"]
[Round "2"]
[White "coco_crc"]
[Black "Das_Virus_2020"]
[Result "0-1"]
[WhiteElo "2180"]
[BlackElo "2421"]
[TimeControl "180+1"]
[EndTime "10:17:08 PDT"]
[Termination "Das_Virus_2020 won by resignation"]

1. e4 {[%clk 0:03:00.9]} 1... e6 {[%clk 0:02:59.4]} 2. d4 {[%clk 0:03:00]} 2...
d5 {[%clk 0:03:00]} 3. e5 {[%clk 0:02:59.8]} 3... c5 {[%clk 0:02:59.7]} 4. c3
{[%clk 0:03:00.2]} 4... Nc6 {[%clk 0:03:00.3]} 5. Nf3 {[%clk 0:03:00]} 5... Qb6
{[%clk 0:03:00.8]} 6. Bd3 {[%clk 0:02:59.5]} 6... cxd4 {[%clk 0:03:00.5]} 7.
cxd4 {[%clk 0:03:00.4]} 7... Bd7 {[%clk 0:03:01]} 8. O-O {[%clk 0:03:00.9]} 8...
Nxd4 {[%clk 0:02:59.7]} 9. Nbd2 {[%clk 0:03:01.4]} 9... Nc6 {[%clk 0:02:51.1]}
10. Nb3 {[%clk 0:03:01]} 10... Nh6 {[%clk 0:02:48.3]} 11. Be3 {[%clk 0:02:57.9]}
11... Qc7 {[%clk 0:02:48.5]} 12. Rc1 {[%clk 0:02:57.5]} 12... a6 {[%clk
0:02:46]} 13. Nbd4 {[%clk 0:02:38.1]} 13... Ng4 {[%clk 0:02:42]} 14. Bf4 {[%clk
0:02:34.1]} 14... h5 {[%clk 0:02:41.5]} 15. h3 {[%clk 0:02:34]} 15... Nh6 {[%clk
0:02:40.9]} 16. a3 {[%clk 0:02:28.7]} 16... Be7 {[%clk 0:02:22.7]} 17. Qd2
{[%clk 0:02:23.1]} 17... Qb6 {[%clk 0:02:16.4]} 18. Be3 {[%clk 0:02:14.5]} 18...
Qd8 {[%clk 0:02:15.6]} 19. b4 {[%clk 0:02:10.2]} 19... Rc8 {[%clk 0:01:57.2]}
20. Nb3 {[%clk 0:02:04]} 20... g5 {[%clk 0:01:48.6]} 21. Rxc6 {[%clk 0:01:37.8]}
21... Bxc6 {[%clk 0:01:45.8]} 22. Nxg5 {[%clk 0:01:36.7]} 22... d4 {[%clk
0:01:39.3]} 23. Bf4 {[%clk 0:00:47.5]} 23... Bxg5 {[%clk 0:01:27.3]} 24. Bxg5
{[%clk 0:00:45]} 24... Qd5 {[%clk 0:01:27.7]} 25. f3 {[%clk 0:00:38.1]} 25...
Qxb3 {[%clk 0:01:18.7]} 26. Bxh6 {[%clk 0:00:38.2]} 26... Rxh6 {[%clk
0:01:15.3]} 27. Qxh6 {[%clk 0:00:37.2]} 27... Qxd3 {[%clk 0:01:15.4]} 28. Qh8+
{[%clk 0:00:31.6]} 28... Kd7 {[%clk 0:01:14.3]} 29. Qf6 {[%clk 0:00:31.9]} 29...
Qg6 {[%clk 0:01:14]} 30. Qf4 {[%clk 0:00:31.5]} 30... Rg8 {[%clk 0:01:10.1]} 31.
Qxd4+ {[%clk 0:00:30.9]} 31... Kc8 {[%clk 0:01:10.7]} 32. Rf2 {[%clk 0:00:30.9]}
32... Bxf3 {[%clk 0:01:02.4]} 33. a4 {[%clk 0:00:28.3]} 33... Bc6 {[%clk
0:00:59.6]} 34. b5 {[%clk 0:00:24.2]} 34... axb5 {[%clk 0:00:58.5]} 35. axb5
{[%clk 0:00:23.9]} 35... Qb1+ {[%clk 0:00:58.1]} 36. Kh2 {[%clk 0:00:23.5]}
36... Qxb5 {[%clk 0:00:56.8]} 0-1

[Event "*** Titled Tuesday Blitz"]
[Site "Chess.com"]
[Date "2020.10.20"]
[Round "2"]
[White "googlegoom"]
[Black "TheBigBoss04"]
[Result "0-1"]
[WhiteElo "2357"]
[BlackElo "2735"]
[TimeControl "180+1"]
[EndTime "10:17:11 PDT"]
[Termination "TheBigBoss04 won by resignation"]

1. Nf3 {[%clk 0:03:00.9]} 1... c6 {[%clk 0:02:59.4]} 2. b3 {[%clk 0:03:01.2]}
2... d5 {[%clk 0:03:00.3]} 3. Bb2 {[%clk 0:03:01.2]} 3... Bf5 {[%clk 0:03:00.7]}
4. e3 {[%clk 0:03:01.7]} 4... h6 {[%clk 0:02:58.1]} 5. Be2 {[%clk 0:03:02]} 5...
Nd7 {[%clk 0:02:56.9]} 6. d4 {[%clk 0:03:02.5]} 6... Ngf6 {[%clk 0:02:57.7]} 7.
Nbd2 {[%clk 0:03:02.4]} 7... e6 {[%clk 0:02:58.2]} 8. O-O {[%clk 0:03:02.5]}
8... Bd6 {[%clk 0:02:58.9]} 9. c4 {[%clk 0:03:03.1]} 9... O-O {[%clk 0:02:59.1]}
10. a3 {[%clk 0:03:03.7]} 10... a5 {[%clk 0:02:58.2]} 11. Bc3 {[%clk 0:03:03.9]}
11... Ne4 {[%clk 0:02:54]} 12. Nxe4 {[%clk 0:03:04.2]} 12... Bxe4 {[%clk
0:02:54.9]} 13. Nd2 {[%clk 0:03:05]} 13... Bh7 {[%clk 0:02:54.2]} 14. Qc1 {[%clk
0:03:05.7]} 14... Nf6 {[%clk 0:02:31.7]} 15. Qb2 {[%clk 0:03:03.2]} 15... Ne4
{[%clk 0:02:31.3]} 16. Nxe4 {[%clk 0:03:03.6]} 16... Bxe4 {[%clk 0:02:32]} 17.
b4 {[%clk 0:03:02.1]} 17... Qh4 {[%clk 0:02:29.6]} 18. g3 {[%clk 0:03:01.9]}
18... Qh3 {[%clk 0:02:28.7]} 19. f3 {[%clk 0:03:02]} 19... axb4 {[%clk
0:02:14.7]} 20. axb4 {[%clk 0:02:59.6]} 20... Rxa1 {[%clk 0:02:06.4]} 21. Rxa1
{[%clk 0:03:00.5]} 21... Bxg3 {[%clk 0:02:00.4]} 22. hxg3 {[%clk 0:02:49.5]}
22... Qxg3+ {[%clk 0:01:58.2]} 23. Kf1 {[%clk 0:02:49.8]} 23... Bxf3 {[%clk
0:01:58.3]} 24. Bxf3 {[%clk 0:02:47.5]} 24... Qxf3+ {[%clk 0:01:57.8]} 25. Qf2
{[%clk 0:02:47]} 25... Qe4 {[%clk 0:01:37.7]} 26. Bb2 {[%clk 0:01:38.1]} 26...
dxc4 {[%clk 0:01:35.4]} 27. Qe2 {[%clk 0:01:30]} 27... f5 {[%clk 0:01:22.2]} 28.
Bc1 {[%clk 0:01:20.4]} 28... Rf6 {[%clk 0:01:11]} 29. Qh5 {[%clk 0:01:07.1]}
29... Kh7 {[%clk 0:00:54.1]} 30. Bd2 {[%clk 0:00:37.6]} 30... c3 {[%clk
0:00:47.6]} 31. Be1 {[%clk 0:00:35.6]} 31... Rg6 {[%clk 0:00:41.2]} 32. Bf2
{[%clk 0:00:34.6]} 32... Rg5 {[%clk 0:00:32.8]} 33. Qe2 {[%clk 0:00:34]} 33...
Qh1+ {[%clk 0:00:32]} 0-1